fUSD/lending_fUSD_20251226
["ID","MTS","AMOUNT","RATE_DAILY","PERIOD"]
[399832687,1766715037791,-435.68171857,0.00013777,2]
[399832688,1766715037803,-517.04427488,0.00013777,2]
[399832689,1766715037815,-475.25219155,0.00013777,2]
[399832690,1766715037832,-1855.51320101,0.00013777,2]
[399832691,1766715037847,-1575.97488614,0.00013777,2]
[399832692,1766715037865,-21918.08337215,0.00013777,2]
[399832869,1766715039644,-414.14756201,0.00013777,2]
[399832871,1766715039657,-438.28,0.00013777,2]
[399832873,1766715039668,-1469.8728,0.00013777,2]
[399832878,1766715039699,-588.0,0.00013777,2]
[399832883,1766715039756,-500.0,0.00013777,2]
[399832889,1766715039915,-746834.58793183,0.00013777,2]
[399832891,1766715039925,-500.0,0.00013785,2]
[399832893,1766715039935,-500.0,0.00013785,2]
[399832895,1766715039945,-150.0,0.00013785,2]
[399832897,1766715039956,-500.0,0.00013785,2]
[399832899,1766715039966,-150.0,0.00013785,2]
[399832901,1766715039975,-500.0,0.00013785,2]
[399832903,1766715039985,-150.0,0.00013785,2]
[399832905,1766715039995,-150.0,0.00013785,2]
[399832907,1766715040005,-503.05180324,0.00013785,2]
[399832909,1766715040015,-500.0,0.00013787,2]
[399832911,1766715040025,-500.0,0.00013813,2]
[399832913,1766715040034,-500.0,0.00013813,2]
[399832915,1766715040044,-224.36439977,0.00013813,2]
[399832917,1766715040054,-500.0,0.00013813,2]
[399832919,1766715040064,-150.0,0.00013813,2]
[399832921,1766715040073,-551.95789067,0.00013813,2]
[399832923,1766715040082,-150.0,0.00013813,2]
[399832925,1766715040092,-150.0,0.00013813,2]
[399832927,1766715040101,-500.0,0.00013815,2]
[399832929,1766715040111,-501.81764846,0.0001384,2]
[399832931,1766715040120,-500.0,0.0001384,2]
[399832933,1766715040130,-500.0,0.0001384,2]
[399832935,1766715040146,-175.91364612,0.0001384,2]
[399832937,1766715040155,-150.98746646,0.0001384,2]
[399832939,1766715040166,-175.83818787,0.0001384,2]
[399832941,1766715040176,-500.0,0.00013842,2]
[399832942,1766715040187,-500.0,0.00013867,2]
[399832943,1766715040197,-500.0,0.00013867,2]
[399832944,1766715040206,-500.0,0.00013869,2]
[399832945,1766715040215,-200.0,0.00013871,2]
[399832946,1766715040226,-1000.0,0.00013876,2]
[399832947,1766715040236,-705.83,0.00013877,2]
[399832948,1766715040246,-8121.06,0.00013877,2]
[399832949,1766715040257,-499.99,0.00013877,2]
[399832950,1766715040267,-9999.99,0.00013877,2]
[399832951,1766715040277,-150.99,0.00013877,2]
[399832952,1766715040287,-299.99,0.00013877,2]
[399832953,1766715040297,-9999.99,0.00013877,2]
[399832954,1766715040307,-425.3,0.00013877,2]
[399832955,1766715040317,-150.99,0.00013877,2]
[399832956,1766715040331,-999.99,0.00013877,2]
[399832957,1766715040341,-1811.6178,0.00013878,2]
[399832958,1766715040351,-2500.0,0.00013878,2]
[399832959,1766715040362,-160.02274043,0.00013879,2]
[399832960,1766715040373,-4846.21416122,0.00013879,2]
[399832961,1766715040383,-842.00045098,0.00013879,2]
[399832962,1766715040394,-500.0,0.00013895,2]
[399832963,1766715040406,-571.61372458,0.00013897,2]
[399832964,1766715040416,-500.0,0.00013922,2]
[399832965,1766715040426,-1000.0,0.00013933,2]
[399832966,1766715040436,-200.0,0.00013933,2]
[399832967,1766715040446,-500.0,0.0001395,2]
[399832968,1766715040456,-172.57934987,0.00013975,2]
[399832969,1766715040467,-1238.407,0.00013975,2]
[399832970,1766715040477,-500.0,0.00013977,2]
[399832971,1766715040487,-500.0,0.00013977,2]
[399832972,1766715040497,-502.50439874,0.00013977,2]
[399832973,1766715040511,-500.0,0.00013977,2]
[399832974,1766715040520,-500.0,0.00013977,2]
[399832975,1766715040531,-500.0,0.00013977,2]
[399832976,1766715040541,-511.28417982,0.00013977,2]
[399832977,1766715040551,-500.0,0.00013977,2]
[399832978,1766715040561,-516.96862068,0.00013977,2]
[399832979,1766715040571,-509.51648321,0.00013977,2]
[399832980,1766715040581,-509.01400856,0.00013977,2]
[399832981,1766715040591,-55845.74071198,0.00013977,2]
[399832982,1766715040601,-501.58252397,0.00013977,2]
[399832983,1766715040611,-500.0,0.00013977,2]
[399832984,1766715040621,-500.0,0.00013977,2]
[399832985,1766715040631,-500.0,0.00013977,2]
[399832986,1766715040641,-500.0,0.00013977,2]
[399832987,1766715040651,-500.0,0.00013977,2]
[399832988,1766715040662,-622.75623678,0.00013977,2]
[399832989,1766715040671,-510.70790146,0.00013977,2]
[399832990,1766715040682,-500.0,0.00013977,2]
[399832991,1766715040691,-506.86877681,0.00013977,2]
[399832992,1766715040705,-503.01431449,0.00013977,2]
[399832993,1766715040715,-550.7292,0.00013979,2]
[399832994,1766715040726,-500.0,0.00014004,2]
[399832995,1766715040735,-500.0,0.00014032,2]
[399832996,1766715040747,-500.0,0.00014059,2]
[399832997,1766715040757,-506.90698062,0.00014078,2]
[399832999,1766715040767,-511.91710002,0.00014078,2]
[399833001,1766715040779,-500.0,0.00014078,2]
[399833002,1766715040789,-501.63399008,0.00014078,2]
[399833003,1766715040799,-500.0,0.00014087,2]
[399833004,1766715040809,-300.0,0.00014099,2]
[399833005,1766715040819,-300.0,0.00014099,2]
[399833006,1766715040829,-300.0,0.00014099,2]
[399833007,1766715040839,-419.89195242,0.00014099,2]
[399833008,1766715040849,-1680.0,0.00014099,2]
[399833009,1766715040859,-500.0,0.00014114,2]
[399833010,1766715040869,-500.0,0.00014141,2]
[399833011,1766715040879,-166.66,0.0001415,2]
[399833012,1766715040889,-252.83575514,0.00014165,2]
[399833013,1766715040900,-343.17511814,0.00014169,2]
[399833014,1766715040912,-190.12,0.00014174,2]
[399833015,1766715040921,-949.77,0.00014202,2]
[399833016,1766715040932,-4846.2141612,0.00014215,2]
[399833017,1766715040942,-842.00045094,0.00014215,2]
[399833018,1766715040952,-175.29,0.00014271,2]
[399833019,1766715040962,-1000.0,0.0001443,2]
[399833020,1766715040972,-2548.17558294,0.00014451,2]
[399833021,1766715040982,-600.0,0.00014451,2]
[399833022,1766715040992,-600.0,0.00014451,2]
[399833023,1766715041003,-639.83538298,0.00014451,2]
[399833024,1766715041012,-300.0,0.00014451,2]
[399833025,1766715041023,-174.76365262,0.00014489,2]
[399833026,1766715041033,-4846.2141612,0.0001455,2]
[399833027,1766715041043,-842.00045094,0.0001455,2]
[399833028,1766715041054,-166.66,0.00014588,2]
[399833029,1766715041063,-1600.0,0.00014871,2]
[399833030,1766715041074,-4846.2141612,0.00014886,2]
[399833031,1766715041084,-842.00045094,0.00014886,2]
[399833032,1766715041094,-2356.07114622,0.00014972,2]
[399833033,1766715041104,-166.66,0.00015026,2]
[399833034,1766715041114,-150.0,0.00015068,2]
[399833035,1766715041124,-150.0,0.00015095,2]
[399833036,1766715041133,-211.99403485,0.00015123,2]
[399833037,1766715041143,-151.0,0.00015147,2]
[399833038,1766715041153,-4846.2141612,0.00015222,2]
[399833039,1766715041164,-842.00045094,0.00015222,2]
[399833040,1766715041173,-150.0,0.00015288,2]
[399833041,1766715041183,-150.0,0.00015288,2]
[399833042,1766715041194,-150.0,0.00015288,2]
[399833043,1766715041203,-150.0,0.00015288,2]
[399833044,1766715041214,-150.0,0.00015288,2]
[399833045,1766715041223,-150.0,0.00015288,2]
[399833046,1766715041233,-150.0,0.00015288,2]
[399833047,1766715041243,-152.42122212,0.00015288,2]
[399833048,1766715041253,-152.57737943,0.00015288,2]
[399833049,1766715041263,-150.0,0.00015288,2]
[399833050,1766715041273,-174.76365262,0.00015293,2]
[399833051,1766715041283,-150.0,0.00015351,2]
[399833052,1766715041306,-150.0,0.00015413,2]
[399833053,1766715041318,-1000.0,0.00015437,2]
[399833054,1766715041330,-166.66,0.00015464,2]
[399833055,1766715041340,-150.0,0.00015476,2]
[399833056,1766715041350,-2351.0,0.00015509,2]
[399833057,1766715041360,-150.0,0.0001553,2]
[399833058,1766715041371,-150.0,0.00015539,2]
[399833059,1766715041381,-617.96,0.00015551,2]
[399833060,1766715041391,-4846.2141612,0.00015557,2]
[399833061,1766715041402,-842.00045094,0.00015557,2]
[399833062,1766715041413,-150.0,0.00015602,2]
[399833063,1766715041424,-150.0,0.00015627,2]
[399833064,1766715041434,-150.0,0.00015665,2]
[399833065,1766715041444,-1000.0,0.00015675,2]
[399833066,1766715041454,-464.99,0.00015678,2]
[399833067,1766715041464,-465.05,0.00015726,2]
[399833068,1766715041474,-150.0,0.00015728,2]
[399833069,1766715041483,-4808.0,0.00015754,2]
[399833070,1766715041493,-564.0,0.00015754,2]
[399833071,1766715041503,-2451.818,0.00015754,2]
[399833072,1766715041514,-150.0,0.00015773,2]
[399833073,1766715041523,-150.0,0.00015791,2]
[399833074,1766715041533,-1000.0,0.00015811,2]
[399833075,1766715041544,-150.0,0.00015854,2]
[399833076,1766715041554,-150.0,0.00015854,2]
[399833077,1766715041564,-150.0,0.00015854,2]
[399833078,1766715041574,-4846.2141612,0.00015893,2]
[399833079,1766715041583,-842.00045094,0.00015893,2]
[399833080,1766715041593,-150.0,0.00015917,2]
[399833081,1766715041603,-150.0,0.00015967,2]
[399833082,1766715041613,-150.0,0.0001598,2]
[399833083,1766715041623,-500.0,0.00016,5]
[399833084,1766715041632,-1000.0,0.00016008,2]
[399833085,1766715041646,-150.0,0.00016016,2]
[399833086,1766715041656,-500.0,0.00016027,2]
[399833087,1766715041666,-500.0,0.00016027,2]
[399833088,1766715041675,-358267.58,0.00016028,2]
[399833089,1766715041685,-616.0,0.00016042,2]
[399833090,1766715041696,-150.0,0.00016043,2]
[399833091,1766715041705,-190.12,0.00016066,2]
[399833092,1766715041715,-616.0,0.00016067,2]
[399833093,1766715041725,-464.99,0.00016078,2]
[399833095,1766715041735,-174.76365262,0.00016096,2]
[399833097,1766715041745,-150.0,0.00016106,2]
[399833098,1766715041755,-616.0,0.00016116,2]
[399833099,1766715041765,-6507.64,0.00016116,2]
[399833100,1766715041775,-150.0,0.00016137,2]
[399833101,1766715041784,-150.0,0.00016137,2]
[399833102,1766715041794,-181.18,0.00016143,2]
[399833103,1766715041805,-578.20924308,0.00016149,2]
[399833104,1766715041816,-250.0,0.00016149,2]
[399833105,1766715041827,-500.0,0.00016149,2]
[399833106,1766715041837,-153.55596383,0.00016149,2]
[399833107,1766715041847,-500.0,0.00016149,2]
[399833108,1766715041858,-250.0,0.00016149,2]
[399833109,1766715041867,-500.0,0.00016149,2]
[399833110,1766715041877,-500.0,0.00016149,2]
[399833111,1766715041887,-250.0,0.00016149,2]
[399833112,1766715041897,-500.0,0.00016149,2]
[399833113,1766715041907,-500.0,0.00016149,2]
[399833114,1766715041916,-250.0,0.00016149,2]
[399833115,1766715041926,-500.0,0.00016149,2]
[399833116,1766715041936,-500.0,0.00016149,2]
[399833117,1766715041947,-250.0,0.00016149,2]
[399833118,1766715041957,-500.0,0.00016149,2]
[399833119,1766715041968,-500.0,0.00016149,2]
[399833120,1766715041978,-250.0,0.00016149,2]
[399833121,1766715041987,-500.0,0.00016149,2]
[399833122,1766715041998,-500.0,0.00016149,2]
[399833123,1766715042008,-250.0,0.00016149,2]
[399833124,1766715042018,-500.0,0.00016149,2]
[399833125,1766715042029,-500.0,0.00016149,2]
[399833126,1766715042039,-250.0,0.00016149,2]
[399833127,1766715042049,-500.0,0.00016149,2]
[399833128,1766715042060,-500.0,0.00016149,2]
[399833129,1766715042070,-250.0,0.00016149,2]
[399833130,1766715042080,-574.12855637,0.00016149,2]
[399833131,1766715042090,-500.0,0.00016149,2]
[399833132,1766715042099,-500.0,0.00016149,2]
[399833133,1766715042109,-500.0,0.00016149,2]
[399833134,1766715042118,-250.0,0.00016149,2]
[399833135,1766715042128,-500.0,0.00016149,2]
[399833136,1766715042138,-151.0,0.00016149,2]
[399833137,1766715042148,-500.0,0.00016149,2]
[399833138,1766715042158,-250.0,0.00016149,2]
[399833139,1766715042168,-250.0,0.00016149,2]
[399833140,1766715042178,-500.0,0.00016149,2]
[399833141,1766715042188,-164.41411532,0.00016149,2]
[399833142,1766715042198,-862.11858187,0.00016149,2]
[399833143,1766715042208,-250.0,0.00016149,2]
[399833144,1766715042218,-264.00582044,0.00016149,2]
[399833145,1766715042228,-1088.67069402,0.00016149,2]
[399833146,1766715042238,-200.0,0.00016149,2]
[399833147,1766715042248,-207.4,0.00016149,2]
[399833148,1766715042258,-215.0738,0.00016149,2]
[399833149,1766715042269,-223.0315306,0.00016149,2]
[399833150,1766715042279,-508.90835049,0.00016149,2]
[399833151,1766715042289,-231.28369723,0.00016149,2]
[399833152,1766715042299,-239.84119403,0.00016149,2]
[399833153,1766715042310,-248.71531821,0.00016149,2]
[399833154,1766715042320,-514.20631806,0.00016149,2]
[399833155,1766715042335,-734.83730982,0.00016149,2]
[399833156,1766715042345,-257.91778498,0.00016149,2]
[399833157,1766715042355,-267.46074303,0.00016149,2]
[399833158,1766715042367,-277.35679052,0.00016149,2]
[399833159,1766715042378,-620.0,0.00016149,2]
[399833160,1766715042387,-250.0,0.00016149,2]
[399833161,1766715042399,-250.0,0.00016149,2]
[399833162,1766715042410,-250.0,0.00016149,2]
[399833163,1766715042420,-250.0,0.00016149,2]
[399833164,1766715042430,-250.0,0.00016149,2]
[399833165,1766715042440,-250.0,0.00016149,2]
[399833166,1766715042450,-272.86159702,0.00016149,2]
[399833167,1766715042460,-322.6107,0.00016149,2]
[399833168,1766715042471,-250.0,0.00016149,2]
[399833169,1766715042481,-250.0,0.00016149,2]
[399833170,1766715042493,-259.84169002,0.00016149,2]
[399833171,1766715042503,-481.45,0.00016164,2]
[399833172,1766715042513,-651.43,0.00016164,2]
[399833173,1766715042524,-481.44,0.00016164,2]
[399833180,1766715042742,-481.42,0.00016164,2]
[399833181,1766715042755,-481.45,0.00016164,2]
[399833182,1766715042765,-481.45,0.00016164,2]
[399833183,1766715042775,-481.45,0.00016164,2]
[399833184,1766715042786,-481.45,0.00016164,2]
[399833185,1766715042795,-481.45,0.00016164,2]
[399833186,1766715042805,-481.45,0.00016164,2]
[399833187,1766715042815,-481.45,0.00016164,2]
[399833188,1766715042825,-481.45,0.00016164,2]
[399833189,1766715042835,-481.45,0.00016164,2]
[399833190,1766715042845,-481.45,0.00016164,2]
[399833191,1766715042854,-481.45,0.00016164,2]
[399833192,1766715042863,-481.45,0.00016164,2]
[399833193,1766715042874,-481.45,0.00016164,2]
[399833194,1766715042884,-616.0,0.00016164,2]
[399833195,1766715042894,-150.0,0.00016168,2]
[399833196,1766715042904,-162.40882811,0.00016183,2]
[399833197,1766715042915,-500.0,0.00016183,2]
[399833198,1766715042925,-500.0,0.00016183,2]
[399833199,1766715042934,-500.0,0.00016183,2]
[399833200,1766715042944,-500.0,0.00016183,2]
[399833201,1766715042953,-500.76420326,0.00016183,2]
[399833202,1766715042963,-500.0,0.00016183,2]
[399833203,1766715042972,-500.0,0.00016183,2]
[399833204,1766715042981,-500.40933379,0.00016183,2]
[399833205,1766715042991,-500.0,0.00016183,2]
[399833206,1766715043001,-500.4331063,0.00016183,2]
[399833207,1766715043011,-500.0,0.00016183,2]
[399833208,1766715043021,-500.0,0.00016183,2]
[399833209,1766715043032,-501.60858942,0.00016183,2]
[399833210,1766715043042,-502.41502737,0.00016183,2]
[399833211,1766715043051,-500.36407423,0.00016183,2]
[399833213,1766715043061,-500.65805636,0.00016183,2]
[399833214,1766715043070,-168.40038853,0.00016183,2]
[399833215,1766715043081,-500.89852069,0.00016183,2]
[399833216,1766715043091,-500.0,0.00016183,2]
[399833217,1766715043100,-206.77102158,0.00016183,2]
[399833218,1766715043111,-501.0445462,0.00016183,2]
[399833219,1766715043121,-500.88737108,0.00016183,2]
[399833220,1766715043131,-331.00488176,0.00016183,2]
[399833221,1766715043141,-590.62865017,0.00016183,2]
[399833222,1766715043152,-160.69712544,0.00016183,2]
[399833223,1766715043162,-160.31329794,0.00016183,2]
[399833224,1766715043172,-500.44282542,0.00016183,2]
[399833225,1766715043181,-500.80222872,0.00016183,2]
[399833226,1766715043191,-160.19915841,0.00016183,2]
[399833227,1766715043201,-500.23580689,0.00016183,2]
[399833228,1766715043211,-500.31332609,0.00016183,2]
[399833230,1766715043221,-500.0,0.00016183,2]
[399833232,1766715043230,-333.75918667,0.00016183,2]
[399833233,1766715043241,-230.98283811,0.00016183,2]
[399833236,1766715043250,-160.3110379,0.00016183,2]
[399833238,1766715043260,-160.30850939,0.00016183,2]
[399833240,1766715043270,-160.31325962,0.00016183,2]
[399833241,1766715043280,-160.36502821,0.00016183,2]
[399833242,1766715043290,-500.0,0.00016183,2]
[399833243,1766715043300,-500.0,0.00016183,2]
[399833244,1766715043310,-500.45843322,0.00016183,2]
[399833245,1766715043321,-500.0,0.00016183,2]
[399833246,1766715043334,-831.80408309,0.00016185,2]
[399833247,1766715043344,-616.0,0.00016212,2]
[399833248,1766715043356,-465.05,0.00016219,2]
[399833249,1766715043365,-464.99,0.00016219,2]
[399833250,1766715043376,-464.99,0.00016219,2]
[399833251,1766715043386,-464.99,0.00016219,2]
[399833252,1766715043395,-404.98,0.00016219,2]
[399833253,1766715043408,-4846.2141612,0.00016229,2]
[399833254,1766715043419,-842.00045094,0.00016229,2]
[399833255,1766715043428,-150.0,0.00016231,2]
[399833256,1766715043438,-175.29,0.00016234,2]
[399833257,1766715043448,-616.0,0.00016246,2]
[399833258,1766715043458,-150.0,0.00016258,2]
[399833259,1766715043468,-152.2363195,0.00016267,2]
[399833260,1766715043478,-616.0,0.00016293,2]
[399833261,1766715043488,-150.0,0.00016294,2]
[399833262,1766715043498,-157.41062907,0.00016301,2]
[399833263,1766715043508,-150.0,0.00016307,2]
[399833264,1766715043518,-1000.0,0.00016309,2]
[399833265,1766715043528,-150.0,0.00016357,2]
[399833266,1766715043538,-157.41062907,0.00016411,2]
[399833267,1766715043548,-150.0,0.0001642,2]
[399833268,1766715043557,-150.0,0.0001642,2]
[399833269,1766715043567,-150.0,0.0001642,2]
[399833270,1766715043577,-151.0,0.00016435,2]
[399833271,1766715043587,-500.0,0.00016438,2]
[399833272,1766715043597,-500.0,0.00016438,2]
[399833273,1766715043608,-500.0,0.00016438,2]
[399833274,1766715043619,-500.0,0.00016438,2]
[399833275,1766715043629,-500.0,0.00016438,2]
[399833276,1766715043638,-500.0,0.00016438,2]
[399833277,1766715043648,-500.0,0.00016438,2]
[399833278,1766715043658,-198.6066017,0.00016438,2]
[399833279,1766715043668,-500.0,0.00016438,2]
[399833280,1766715043678,-500.0,0.00016438,2]
[399833281,1766715043688,-500.0,0.00016438,2]
[399833282,1766715043698,-500.0,0.00016438,2]
[399833283,1766715043708,-500.0,0.00016438,2]
[399833284,1766715043718,-500.0,0.00016438,2]
[399833285,1766715043728,-500.0,0.00016438,2]
[399833286,1766715043738,-500.0,0.00016438,2]
[399833287,1766715043748,-500.0,0.00016438,2]
[399833288,1766715043758,-500.0,0.00016438,2]
[399833289,1766715043767,-500.0,0.00016438,2]
[399833290,1766715043778,-500.0,0.00016438,2]
[399833291,1766715043787,-500.0,0.00016438,2]
[399833292,1766715043797,-17924.84,0.00016438,2]
[399833293,1766715043807,-744.49641742,0.00016438,2]
[399833294,1766715043817,-284.0,0.00016438,5]
[399833295,1766715043827,-1459.0,0.00016458,2]
[399833296,1766715043836,-150.0,0.00016483,2]
[399833297,1766715043846,-302.53323335,0.00016493,2]
[399833298,1766715043856,-157.41062907,0.00016493,2]
[399833299,1766715043867,-305.6,0.00016498,2]
[399833300,1766715043876,-481.44,0.000165,2]
[399833301,1766715043887,-481.45,0.000165,2]
[399833302,1766715043897,-150.0,0.00016501,2]
[399833303,1766715043907,-1600.0,0.00016524,2]
[399833304,1766715043917,-305.6,0.00016544,2]
[399833305,1766715043927,-150.0,0.00016546,2]
[399833306,1766715043936,-465.05,0.00016548,2]
[399833307,1766715043946,-464.99,0.00016548,2]
[399833308,1766715043957,-464.99,0.00016548,2]
[399833309,1766715043967,-464.99,0.00016548,2]
[399833310,1766715043980,-481.45,0.00016548,2]
[399833311,1766715043991,-481.45,0.00016548,2]
[399833312,1766715044001,-481.45,0.00016548,2]
[399833313,1766715044011,-481.45,0.00016548,2]
[399833314,1766715044021,-481.45,0.00016548,2]
[399833315,1766715044031,-481.45,0.00016548,2]
[399833316,1766715044042,-481.45,0.00016548,2]
[399833317,1766715044051,-481.45,0.00016548,2]
[399833318,1766715044061,-481.45,0.00016548,2]
[399833319,1766715044072,-481.45,0.00016548,2]
[399833320,1766715044081,-481.45,0.00016548,2]
[399833321,1766715044091,-481.45,0.00016548,2]
[399833322,1766715044100,-481.45,0.00016548,2]
[399833323,1766715044110,-481.45,0.00016548,2]
[399833324,1766715044121,-481.45,0.00016548,2]
[399833325,1766715044130,-481.45,0.00016548,2]
[399833326,1766715044140,-481.45,0.00016548,2]
[399833327,1766715044150,-616.0,0.00016554,2]
[399833328,1766715044162,-4846.2141612,0.00016564,2]
[399833329,1766715044172,-842.00045094,0.00016564,2]
[399833330,1766715044182,-616.0,0.0001658,2]
[399833331,1766715044192,-305.6,0.00016589,2]
[399833332,1766715044203,-1009.0,0.000166,2]
[399833333,1766715044213,-190.12,0.00016601,2]
[399833334,1766715044223,-157.41062907,0.00016603,2]
[399833335,1766715044233,-150.0,0.00016609,2]
[399833336,1766715044244,-207.4,0.0001661,2]
[399833337,1766715044254,-1459.0,0.00016612,2]
[399833338,1766715044268,-305.6,0.00016635,2]
[399833339,1766715044278,-150.0,0.00016647,2]
[399833340,1766715044288,-2145.02709011,0.0001666,2]
[399833341,1766715044300,-150.0,0.00016672,2]
[399833342,1766715044310,-305.6,0.00016681,2]
[399833343,1766715044320,-595.37131296,0.00016697,2]
[399833344,1766715044333,-157.41062907,0.00016712,2]
[399833345,1766715044345,-1000.0,0.00016723,2]
[399833346,1766715044355,-300.0,0.00016724,2]
[399833347,1766715044366,-305.6,0.00016726,2]
[399833348,1766715044376,-500.4525284,0.00016731,2]
[399833349,1766715044386,-680.51529668,0.00016731,2]
[399833350,1766715044395,-1000.0,0.00016731,2]
[399833351,1766715044407,-500.85707724,0.00016731,2]
[399833352,1766715044417,-1000.0,0.00016731,2]
[399833353,1766715044427,-516.27997317,0.00016731,2]
[399833354,1766715044437,-500.43644323,0.00016731,2]
[399833355,1766715044448,-1000.0,0.00016731,2]
[399833356,1766715044458,-913.88399981,0.00016731,2]
[399833357,1766715044468,-1000.0,0.00016731,2]
[399833358,1766715044477,-511.82107275,0.00016731,2]
[399833359,1766715044487,-1000.0,0.00016731,2]
[399833360,1766715044497,-1000.0,0.00016731,2]
[399833361,1766715044507,-181.18,0.00016732,2]
[399833362,1766715044517,-150.0,0.00016735,2]
[399833363,1766715044527,-150.0,0.00016744,2]
[399833364,1766715044536,-305.6,0.00016772,2]
[399833365,1766715044546,-581.60962426,0.00016785,2]
[399833366,1766715044556,-150.0,0.00016798,2]
[399833367,1766715044566,-481.44,0.000168,2]
[399833368,1766715044576,-300.0,0.000168,2]
[399833369,1766715044587,-175.29,0.00016803,2]
[399833370,1766715044596,-264.0,0.00016811,2]
[399833371,1766715044606,-150.0,0.00016811,2]
[399833372,1766715044616,-212.0,0.00016811,2]
[399833373,1766715044626,-150.0,0.00016811,2]
[399833374,1766715044635,-170.113,0.00016811,2]
[399833375,1766715044645,-170.0,0.00016811,2]
[399833376,1766715044657,-150.121,0.00016811,2]
[399833377,1766715044667,-150.047,0.00016811,2]
[399833378,1766715044677,-150.0,0.00016811,2]
[399833379,1766715044687,-150.0,0.00016811,2]
[399833380,1766715044696,-150.0,0.00016811,2]
[399833381,1766715044705,-150.099,0.00016811,2]
[399833382,1766715044715,-1610.0,0.00016811,2]
[399833383,1766715044725,-3459.0,0.00016811,2]
[399833384,1766715044735,-1330.846,0.00016811,2]
[399833385,1766715044744,-433.435,0.00016811,2]
[399833386,1766715044754,-1267.169,0.00016811,2]
[399833387,1766715044764,-305.6,0.00016817,2]
[399833388,1766715044774,-157.41062907,0.00016822,2]
[399833389,1766715044784,-26249.10218768,0.0001683,2]
[399833390,1766715044795,-150.0,0.0001686,2]
[399833391,1766715044806,-305.6,0.00016863,2]
[399833392,1766715044816,-200.0,0.00016864,2]
[399833393,1766715044826,-25000.0,0.00016865,3]
[399833394,1766715044836,-25000.0,0.00016874,3]
[399833395,1766715044846,-464.99,0.00016877,2]
[399833396,1766715044856,-464.99,0.00016877,2]
[399833397,1766715044867,-464.99,0.00016877,2]
[399833398,1766715044878,-464.99,0.00016877,2]
[399833399,1766715044887,-464.99,0.00016877,2]
[399833400,1766715044897,-180.65,0.00016877,2]
[399833401,1766715044908,-25000.0,0.00016882,3]
[399833402,1766715044918,-25000.0,0.00016891,3]
[399833403,1766715044928,-160.02274042,0.000169,2]
[399833404,1766715044939,-10000.0,0.000169,2]
[399833405,1766715044949,-25000.0,0.000169,3]
[399833406,1766715044959,-4846.2141612,0.000169,2]
[399833407,1766715044969,-842.00045094,0.000169,2]
[399833408,1766715044979,-174.76365262,0.000169,2]
[399833409,1766715044989,-4640.0,0.000169,2]
[399833410,1766715044999,-157.41062907,0.00016904,2]
[399833411,1766715045009,-305.6,0.00016909,2]
[399833412,1766715045019,-617.96,0.00016921,2]
[399833413,1766715045029,-150.0,0.00016923,2]
[399833414,1766715045039,-400.17523099,0.00016936,2]
[399833415,1766715045049,-70606.90154292,0.00016936,2]
[399833416,1766715045059,-305.6,0.00016954,2]
[399833417,1766715045070,-152.97863194,0.00016973,2]
[399833418,1766715045079,-300.0,0.00016986,5]
[399833419,1766715045089,-159.10512061,0.00016986,2]
[399833420,1766715045099,-155.15685309,0.00016986,2]